Workbook

Sheet 中小学笔试成绩
A1: 龙沙区2023年公开招聘教师笔试成绩
A2: 姓名 | B2: 考场号 | C2: 申报学科 及岗位代码 | D2: 笔试 成绩 | E2: 政策加分数 | F2: 政策加分项目 | G2: 笔试 总成绩 | H2: 笔试折比后成绩 40%
A3: 郑影 | B3: 中小学第01考场 | C3: 初中语文01 | D3: 72.5 | G3: =D3+E3 -> 72.5 | H3: =G3*0.4 -> 29.00
A4: 牛志翔 | B4: 中小学第01考场 | C4: 初中语文01 | D4: 54 | G4: =D4+E4 -> 54 | H4: =G4*0.4 -> 21.60
A5: 朱桦 | B5: 中小学第01考场 | C5: 初中语文01 | D5: 62.5 | G5: 62.5 | H5: 25.00
A6: 田欣 | B6: 中小学第01考场 | C6: 初中语文01 | G6: 0 | H6: 0.00
A7: 李佳妮 | B7: 中小学第01考场 | C7: 初中语文01 | D7: 58 | G7: 58 | H7: 23.20
A8: 邹守正 | B8: 中小学第01考场 | C8: 初中语文01 | D8: 29 | G8: 29 | H8: 11.60
A9: 许佳男 | B9: 中小学第01考场 | C9: 初中语文01 | D9: 47 | G9: 47 | H9: 18.80
A10: 张广函 | B10: 中小学第01考场 | C10: 初中语文01 | D10: 56 | G10: 56 | H10: 22.40
A11: 王佳琪 | B11: 中小学第01考场 | C11: 初中语文01 | G11: 0 | H11: 0.00
A12: 张雨晴 | B12: 中小学第01考场 | C12: 初中语文01 | D12: 60.5 | G12: 60.5 | H12: 24.20
A13: 贾旭 | B13: 中小学第01考场 | C13: 初中语文01 | G13: 0 | H13: 0.00
A14: 赵雪 | B14: 中小学第01考场 | C14: 初中语文01 | D14: 58.5 | G14: 58.5 | H14: 23.40
A15: 关婷婷 | B15: 中小学第01考场 | C15: 初中语文01 | D15: 51.5 | G15: 51.5 | H15: 20.60
A16: 刘瑶 | B16: 中小学第01考场 | C16: 初中语文01 | D16: 61.5 | G16: 61.5 | H16: 24.60
A17: 张思宇 | B17: 中小学第01考场 | C17: 初中语文01 | D17: 53 | G17: 53 | H17: 21.20
A18: 马蕊 | B18: 中小学第01考场 | C18: 初中语文01 | G18: 0 | H18: 0.00
A19: 段杨 | B19: 中小学第01考场 | C19: 初中语文01 | D19: 61.5 | G19: 61.5 | H19: 24.60
A20: 张哲 | B20: 中小学第01考场 | C20: 初中语文01 | D20: 58 | G20: 58 | H20: 23.20
A21: 李双 | B21: 中小学第01考场 | C21: 初中语文01 | D21: 68 | G21: 68 | H21: 27.20
A22: 宋奇霖 | B22: 中小学第01考场 | C22: 初中语文01 | D22: 48 | G22: 48 | H22: 19.20
A23: 武华中 | B23: 中小学第01考场 | C23: 初中语文01 | D23: 53 | G23: 53 | H23: 21.20
A24: 田爽 | B24: 中小学第01考场 | C24: 初中语文01 | D24: 49.5 | G24: 49.5 | H24: 19.80
A25: 何畅 | B25: 中小学第01考场 | C25: 初中语文01 | D25: 58 | G25: 58 | H25: 23.20
A26: 包晶晶 | B26: 中小学第01考场 | C26: 初中语文01 | D26: 51.5 | E26: 10 | F26: 特岗教师 | G26: 61.5 | H26: 24.60
A27: 张伟 | B27: 中小学第01考场 | C27: 初中语文01 | D27: 46.5 | G27: 46.5 | H27: 18.60
A28: 孟凡杰 | B28: 中小学第01考场 | C28: 初中语文01 | D28: 64 | G28: 64 | H28: 25.60
A29: 王成阳 | B29: 中小学第01考场 | C29: 初中语文01 | D29: 67 | G29: 67 | H29: 26.80
A30: 张晓康 | B30: 中小学第01考场 | C30: 初中语文01 | G30: 0 | H30: 0.00
A31: 刘钊 | B31: 中小学第01考场 | C31: 初中语文01 | D31: 46 | G31: 46 | H31: 18.40
A32: 张安怡 | B32: 中小学第01考场 | C32: 初中语文01 | D32: 66.5 | G32: 66.5 | H32: 26.60
A33: 郭莹莹 | B33: 中小学第02考场 | C33: 初中语文01 | D33: 43 | G33: 43 | H33: 17.20
A34: 李春波 | B34: 中小学第02考场 | C34: 初中语文01 | D34: 63.5 | G34: 63.5 | H34: 25.40
A35: 陈阳阳 | B35: 中小学第02考场 | C35: 初中语文01 | G35: 0 | H35: 0.00
A36: 贾雨 | B36: 中小学第02考场 | C36: 初中语文01 | D36: 50.5 | G36: 50.5 | H36: 20.20
A37: 孙晨浩 | B37: 中小学第02考场 | C37: 初中语文01 | D37: 52 | G37: 52 | H37: 20.80
A38: 袁晓丹 | B38: 中小学第02考场 | C38: 初中语文01 | D38: 38 | G38: 38 | H38: 15.20
A39: 朱慧宏 | B39: 中小学第02考场 | C39: 初中语文01 | G39: 0 | H39: 0.00
A40: 朱馨宇 | B40: 中小学第02考场 | C40: 初中语文01 | D40: 59 | G40: 59 | H40: 23.60
A41: 徐爽 | B41: 中小学第02考场 | C41: 初中语文01 | D41: 51 | G41: 51 | H41: 20.40
A42: 刘莹 | B42: 中小学第02考场 | C42: 初中语文01 | D42: 48.5 | G42: 48.5 | H42: 19.40
A43: 唐猛 | B43: 中小学第02考场 | C43: 初中语文01 | G43: 0 | H43: 0.00
A44: 宫显雪 | B44: 中小学第02考场 | C44: 初中语文01 | D44: 46.5 | G44: 46.5 | H44: 18.60
A45: 孙丹丹 | B45: 中小学第02考场 | C45: 初中语文01 | D45: 46.5 | G45: 46.5 | H45: 18.60
A46: 李施奇 | B46: 中小学第02考场 | C46: 初中语文01 | D46: 70.5 | G46: 70.5 | H46: 28.20
A47: 于静波 | B47: 中小学第02考场 | C47: 初中语文01 | G47: 0 | H47: 0.00
A48: 尹迪阳 | B48: 中小学第02考场 | C48: 初中语文01 | D48: 68 | G48: 68 | H48: 27.20
A49: 张进 | B49: 中小学第02考场 | C49: 初中语文01 | D49: 66.5 | G49: 66.5 | H49: 26.60
A50: 袁慧 | B50: 中小学第02考场 | C50: 初中语文01 | G50: 0 | H50: 0.00
A51: 张春娥 | B51: 中小学第02考场 | C51: 初中语文01 | D51: 55 | G51: 55 | H51: 22.00
A52: 何月 | B52: 中小学第02考场 | C52: 初中语文01 | D52: 47.5 | G52: 47.5 | H52: 19.00
A53: 姜媛媛 | B53: 中小学第02考场 | C53: 初中语文01 | G53: 0 | H53: 0.00
A54: 李彬 | B54: 中小学第02考场 | C54: 初中语文01 | G54: 0 | H54: 0.00
A55: 陶媛 | B55: 中小学第02考场 | C55: 初中语文01 | G55: 0 | H55: 0.00
A56: 赵东阳 | B56: 中小学第02考场 | C56: 初中语文01 | G56: 0 | H56: 0.00
A57: 王彦哲 | B57: 中小学第02考场 | C57: 初中语文01 | D57: 49.5 | G57: 49.5 | H57: 19.80
A58: 高颖 | B58: 中小学第02考场 | C58: 初中语文01 | D58: 38 | G58: 38 | H58: 15.20
A59: 闫姝萱 | B59: 中小学第02考场 | C59: 初中数学02 | G59: 0 | H59: 0.00
A60: 乔添雪 | B60: 中小学第02考场 | C60: 初中数学02 | D60: 40 | G60: 40 | H60: 16.00
A61: 张珊 | B61: 中小学第02考场 | C61: 初中数学02 | D61: 60.5 | G61: 60.5 | H61: 24.20
A62: 姜子森 | B62: 中小学第02考场 | C62: 初中数学02 | D62: 53.5 | G62: 53.5 | H62: 21.40
A63: 苑文欣 | B63: 中小学第03考场 | C63: 初中数学02 | D63: 60 | G63: 60 | H63: 24.00
A64: 韩再畅 | B64: 中小学第03考场 | C64: 初中数学02 | G64: 0 | H64: 0.00
A65: 王洪杰 | B65: 中小学第03考场 | C65: 初中数学02 | D65: 63 | G65: 63 | H65: 25.20
A66: 王鑫 | B66: 中小学第03考场 | C66: 初中数学02 | D66: 60 | G66: 60 | H66: 24.00
A67: 许思绪 | B67: 中小学第03考场 | C67: 初中数学02 | D67: 52 | G67: 52 | H67: 20.80
A68: 刘莹 | B68: 中小学第03考场 | C68: 初中数学02 | D68: 48 | G68: =D68+E68 -> 48 | H68: =G68*0.4 -> 19.20
A69: 张蕾 | B69: 中小学第03考场 | C69: 初中数学02 | D69: 55.5 | G69: 55.5 | H69: 22.20
A70: 韩笑 | B70: 中小学第03考场 | C70: 初中数学02 | D70: 40.5 | G70: 40.5 | H70: 16.20
A71: 范黎明 | B71: 中小学第03考场 | C71: 初中数学02 | D71: 57 | G71: 57 | H71: 22.80
A72: 周依彤 | B72: 中小学第03考场 | C72: 初中数学02 | G72: 0 | H72: 0.00
A73: 张金时 | B73: 中小学第03考场 | C73: 初中数学02 | D73: 53.5 | G73: 53.5 | H73: 21.40
A74: 刘蕾 | B74: 中小学第03考场 | C74: 初中数学02 | D74: 46.5 | G74: 46.5 | H74: 18.60
A75: 何明杰 | B75: 中小学第03考场 | C75: 初中数学02 | G75: 0 | H75: 0.00
A76: 王羽 | B76: 中小学第03考场 | C76: 初中数学02 | D76: 54.5 | G76: 54.5 | H76: 21.80
A77: 王菲 | B77: 中小学第03考场 | C77: 初中数学02 | D77: 52.5 | G77: 52.5 | H77: 21.00
A78: 卢雪婷 | B78: 中小学第03考场 | C78: 初中数学02 | D78: 56 | G78: 56 | H78: 22.40
A79: 范晓丹 | B79: 中小学第03考场 | C79: 初中数学02 | D79: 50 | G79: 50 | H79: 20.00
A80: 米春萌 | B80: 中小学第03考场 | C80: 初中数学02 | G80: 0 | H80: 0.00
A81: 崔莹莹 | B81: 中小学第03考场 | C81: 初中数学02 | D81: 65 | G81: 65 | H81: 26.00
A82: 杜佳雪 | B82: 中小学第03考场 | C82: 初中数学02 | G82: 0 | H82: 0.00
A83: 阚若冰 | B83: 中小学第03考场 | C83: 初中数学02 | D83: 57 | G83: 57 | H83: 22.80
A84: 陈欣 | B84: 中小学第03考场 | C84: 初中数学02 | D84: 51 | G84: 51 | H84: 20.40
A85: 胡思宇 | B85: 中小学第03考场 | C85: 初中数学02 | D85: 51 | G85: 51 | H85: 20.40
A86: 刘凯玉 | B86: 中小学第03考场 | C86: 初中数学02 | G86: 0 | H86: 0.00
A87: 梁葛 | B87: 中小学第03考场 | C87: 初中数学02 | D87: 57.5 | G87: 57.5 | H87: 23.00
A88: 朱宇航 | B88: 中小学第03考场 | C88: 初中数学02 | D88: 53.5 | G88: 53.5 | H88: 21.40
A89: 孙苗苗 | B89: 中小学第03考场 | C89: 初中数学02 | D89: 57 | G89: 57 | H89: 22.80
A90: 薛佳怡 | B90: 中小学第03考场 | C90: 初中数学02 | G90: 0 | H90: 0.00
A91: 王鸿儒 | B91: 中小学第03考场 | C91: 初中数学02 | D91: 55 | G91: 55 | H91: 22.00
A92: 张帆 | B92: 中小学第03考场 | C92: 初中数学02 | D92: 41 | G92: 41 | H92: 16.40
A93: 张欢 | B93: 中小学第04考场 | C93: 初中数学02 | D93: 67.5 | G93: 67.5 | H93: 27.00
A94: 赵丽波 | B94: 中小学第04考场 | C94: 初中数学02 | D94: 46.5 | E94: 12 | F94: 特岗教师 | G94: 58.5 | H94: 23.40
A95: 高宇 | B95: 中小学第04考场 | C95: 初中数学02 | D95: 56.5 | E95: 12 | F95: 特岗教师 | G95: 68.5 | H95: 27.40
A96: 侯畅 | B96: 中小学第04考场 | C96: 初中数学02 | D96: 39 | G96: 39 | H96: 15.60
A97: 孙文浩 | B97: 中小学第04考场 | C97: 初中数学02 | D97: 57.5 | G97: 57.5 | H97: 23.00
A98: 聂丽洋 | B98: 中小学第04考场 | C98: 初中数学02 | G98: 0 | H98: 0.00
A99: 高迪 | B99: 中小学第04考场 | C99: 初中数学02 | D99: 59.5 | G99: 59.5 | H99: 23.80
A100: 高佳琦 | B100: 中小学第04考场 | C100: 初中数学02 | D100: 51.5 | G100: 51.5 | H100: 20.60
A101: 朱妍 | B101: 中小学第04考场 | C101: 初中数学02 | D101: 57 | G101: 57 | H101: 22.80
A102: 张越 | B102: 中小学第04考场 | C102: 初中数学02 | D102: 51 | G102: 51 | H102: 20.40
A103: 蔡文静 | B103: 中小学第04考场 | C103: 初中数学02 | D103: 52 | G103: 52 | H103: 20.80
A104: 周璇 | B104: 中小学第04考场 | C104: 初中数学02 | G104: 0 | H104: 0.00
A105: 吴琦 | B105: 中小学第04考场 | C105: 初中数学02 | D105: 36.5 | G105: 36.5 | H105: 14.60
A106: 李宇松 | B106: 中小学第04考场 | C106: 初中数学02 | G106: 0 | H106: 0.00
A107: 贾楠 | B107: 中小学第04考场 | C107: 初中数学02 | G107: 0 | H107: 0.00
A108: 刘洋 | B108: 中小学第04考场 | C108: 初中数学02 | G108: 0 | H108: 0.00
A109: 周明 | B109: 中小学第04考场 | C109: 初中数学02 | G109: 0 | H109: 0.00
A110: 任轶男 | B110: 中小学第04考场 | C110: 初中数学02 | D110: 50 | G110: 50 | H110: 20.00
A111: 周磊 | B111: 中小学第04考场 | C111: 初中数学02 | D111: 45.5 | G111: 45.5 | H111: 18.20
A112: 于雯竹 | B112: 中小学第04考场 | C112: 初中数学02 | D112: 44 | G112: 44 | H112: 17.60
A113: 孙宝磊 | B113: 中小学第04考场 | C113: 初中数学02 | D113: 51.5 | G113: 51.5 | H113: 20.60
A114: 王雯雯 | B114: 中小学第04考场 | C114: 初中数学02 | G114: 0 | H114: 0.00
A115: 张文育 | B115: 中小学第04考场 | C115: 初中数学02 | D115: 53.5 | G115: 53.5 | H115: 21.40
A116: 田轶文 | B116: 中小学第04考场 | C116: 初中数学02 | D116: 65.5 | G116: 65.5 | H116: 26.20
A117: 崔洋洋 | B117: 中小学第04考场 | C117: 初中数学02 | G117: 0 | H117: 0.00
A118: 田甜 | B118: 中小学第04考场 | C118: 初中数学02 | D118: 37 | G118: 37 | H118: 14.80
A119: 赵慧冬 | B119: 中小学第04考场 | C119: 初中数学02 | D119: 57.5 | G119: 57.5 | H119: 23.00
A120: 刘龙 | B120: 中小学第04考场 | C120: 初中数学02 | D120: 46.5 | G120: 46.5 | H120: 18.60
A121: 孙小鹏 | B121: 中小学第04考场 | C121: 初中数学02 | D121: 55.5 | G121: 55.5 | H121: 22.20
A122: 赵欣 | B122: 中小学第04考场 | C122: 初中数学02 | G122: 0 | H122: 0.00
A123: 殷红 | B123: 中小学第05考场 | C123: 初中数学02 | D123: 38.5 | G123: 38.5 | H123: 15.40
A124: 范芯 | B124: 中小学第05考场 | C124: 初中数学02 | D124: 49 | G124: 49 | H124: 19.60
A125: 高莹 | B125: 中小学第05考场 | C125: 初中数学02 | G125: 0 | H125: 0.00
A126: 刘颖 | B126: 中小学第05考场 | C126: 初中数学02 | D126: 54 | G126: 54 | H126: 21.60
A127: 王梓霖 | B127: 中小学第05考场 | C127: 初中数学02 | D127: 48.5 | G127: 48.5 | H127: 19.40
A128: 纪嘉欣 | B128: 中小学第05考场 | C128: 初中数学02 | G128: 0 | H128: 0.00
A129: 宋一丹 | B129: 中小学第05考场 | C129: 初中数学02 | D129: 44 | G129: 44 | H129: 17.60
A130: 潘江南 | B130: 中小学第05考场 | C130: 初中数学02 | G130: 0 | H130: 0.00
A131: 娄宇宁 | B131: 中小学第05考场 | C131: 初中数学02 | D131: 43.5 | G131: 43.5 | H131: 17.40
A132: 夏修美 | B132: 中小学第05考场 | C132: 初中数学02 | D132: 64 | G132: =D132+E132 -> 64 | H132: =G132*0.4 -> 25.60
A133: 王蕾 | B133: 中小学第05考场 | C133: 初中英语03 | D133: 66 | E133: 10 | F133: 特岗教师 | G133: 76 | H133: 30.40
A134: 刘冬雪 | B134: 中小学第05考场 | C134: 初中英语03 | D134: 46.5 | G134: 46.5 | H134: 18.60
A135: 纪英楠 | B135: 中小学第05考场 | C135: 初中英语03 | D135: 51.5 | G135: 51.5 | H135: 20.60
A136: 王锴欣 | B136: 中小学第05考场 | C136: 初中英语03 | D136: 65 | G136: 65 | H136: 26.00
A137: 于立艳 | B137: 中小学第05考场 | C137: 初中英语03 | D137: 53 | G137: 53 | H137: 21.20
A138: 李辉 | B138: 中小学第05考场 | C138: 初中英语03 | D138: 57 | E138: 10 | F138: 特岗教师 | G138: 67 | H138: 26.80
A139: 梁岚 | B139: 中小学第05考场 | C139: 初中英语03 | D139: 75 | G139: 75 | H139: 30.00
A140: 李玲 | B140: 中小学第05考场 | C140: 初中英语03 | G140: 0 | H140: 0.00
A141: 杨洋 | B141: 中小学第05考场 | C141: 初中英语03 | D141: 65 | G141: 65 | H141: 26.00
A142: 赵妍祺 | B142: 中小学第05考场 | C142: 初中英语03 | D142: 56 | G142: 56 | H142: 22.40
A143: 王琳 | B143: 中小学第05考场 | C143: 初中英语03 | G143: 0 | H143: 0.00
A144: 孙兵 | B144: 中小学第05考场 | C144: 初中英语03 | D144: 52 | G144: 52 | H144: 20.80
A145: 关晓晗 | B145: 中小学第05考场 | C145: 初中英语03 | D145: 59 | G145: 59 | H145: 23.60
A146: 李斯琦 | B146: 中小学第05考场 | C146: 初中英语03 | D146: 63.5 | G146: 63.5 | H146: 25.40
A147: 于淼 | B147: 中小学第05考场 | C147: 初中英语03 | D147: 72.5 | G147: 72.5 | H147: 29.00
A148: 鲁俊娇 | B148: 中小学第05考场 | C148: 初中英语03 | D148: 54.5 | G148: 54.5 | H148: 21.80
A149: 方烨 | B149: 中小学第05考场 | C149: 初中英语03 | D149: 57 | G149: 57 | H149: 22.80
A150: 赵明月 | B150: 中小学第05考场 | C150: 初中英语03 | D150: 68 | G150: 68 | H150: 27.20
A151: 冯楠楠 | B151: 中小学第05考场 | C151: 初中英语03 | D151: 66 | E151: 10 | F151: 特岗教师 | G151: 76 | H151: 30.40
A152: 孙明月 | B152: 中小学第05考场 | C152: 初中英语03 | D152: 49.5 | G152: 49.5 | H152: 19.80
A153: 刘影 | B153: 中小学第06考场 | C153: 初中英语03 | D153: 56.5 | G153: 56.5 | H153: 22.60
A154: 曲畅 | B154: 中小学第06考场 | C154: 初中英语03 | D154: 36 | G154: 36 | H154: 14.40
A155: 颜培培 | B155: 中小学第06考场 | C155: 初中英语03 | D155: 57.5 | G155: 57.5 | H155: 23.00
A156: 赵春辉 | B156: 中小学第06考场 | C156: 初中英语03 | D156: 62 | E156: 10 | F156: 特岗教师 | G156: 72 | H156: 28.80
A157: 刘思萌 | B157: 中小学第06考场 | C157: 初中英语03 | D157: 74.5 | G157: 74.5 | H157: 29.80
A158: 柳钰 | B158: 中小学第06考场 | C158: 初中英语03 | D158: 74 | G158: 74 | H158: 29.60
A159: 郝嘉 | B159: 中小学第06考场 | C159: 初中英语03 | G159: 0 | H159: 0.00
A160: 翟檬 | B160: 中小学第06考场 | C160: 初中英语03 | D160: 57 | G160: 57 | H160: 22.80
A161: 陈雪梅 | B161: 中小学第06考场 | C161: 初中英语03 | G161: 0 | H161: 0.00
A162: 刘润青 | B162: 中小学第06考场 | C162: 初中英语03 | G162: 0 | H162: 0.00
A163: 周立超 | B163: 中小学第06考场 | C163: 初中英语03 | D163: 75 | G163: 75 | H163: 30.00
A164: 马嘉彤 | B164: 中小学第06考场 | C164: 初中英语03 | G164: 0 | H164: 0.00
A165: 孟彤彤 | B165: 中小学第06考场 | C165: 初中英语03 | D165: 59 | G165: 59 | H165: 23.60
A166: 周越 | B166: 中小学第06考场 | C166: 初中英语03 | D166: 66 | G166: 66 | H166: 26.40
A167: 李滢 | B167: 中小学第06考场 | C167: 初中英语03 | D167: 67.5 | G167: 67.5 | H167: 27.00
A168: 张莹 | B168: 中小学第06考场 | C168: 初中英语03 | D168: 58 | G168: 58 | H168: 23.20
A169: 任婉玉 | B169: 中小学第06考场 | C169: 初中英语03 | G169: 0 | H169: 0.00
A170: 宋玉萍 | B170: 中小学第06考场 | C170: 初中英语03 | G170: 0 | H170: 0.00
A171: 刘露 | B171: 中小学第06考场 | C171: 初中英语03 | D171: 52.5 | G171: 52.5 | H171: 21.00
A172: 韩旭 | B172: 中小学第06考场 | C172: 初中英语03 | D172: 72.5 | G172: 72.5 | H172: 29.00
A173: 张鑫蕊 | B173: 中小学第06考场 | C173: 初中英语03 | D173: 70 | G173: 70 | H173: 28.00
A174: 马明楠 | B174: 中小学第06考场 | C174: 初中英语03 | D174: 73.5 | G174: 73.5 | H174: 29.40
A175: 张岩 | B175: 中小学第06考场 | C175: 初中英语03 | G175: 0 | H175: 0.00
A176: 王媛 | B176: 中小学第06考场 | C176: 初中英语03 | G176: 0 | H176: 0.00
A177: 王雪莹 | B177: 中小学第06考场 | C177: 初中英语03 | D177: 56 | G177: 56 | H177: 22.40
A178: 刘鑫 | B178: 中小学第06考场 | C178: 初中英语03 | G178: 0 | H178: 0.00
A179: 徐静 | B179: 中小学第06考场 | C179: 初中英语03 | D179: 72 | G179: 72 | H179: 28.80
A180: 林琳 | B180: 中小学第06考场 | C180: 初中英语03 | D180: 74 | G180: 74 | H180: 29.60
A181: 周禹汐 | B181: 中小学第06考场 | C181: 初中英语03 | D181: 67 | G181: 67 | H181: 26.80
A182: 赵玉玲 | B182: 中小学第06考场 | C182: 初中英语03 | D182: 81.5 | G182: 81.5 | H182: 32.60
A183: 谢旭雯 | B183: 中小学第07考场 | C183: 初中英语03 | D183: 60 | G183: 60 | H183: 24.00
A184: 陈婧 | B184: 中小学第07考场 | C184: 初中英语03 | D184: 54 | G184: 54 | H184: 21.60
A185: 辛兴 | B185: 中小学第07考场 | C185: 初中英语03 | D185: 74 | G185: 74 | H185: 29.60
A186: 王媛 | B186: 中小学第07考场 | C186: 初中英语03 | D186: 70 | G186: 70 | H186: 28.00
A187: 朱艳 | B187: 中小学第07考场 | C187: 初中英语03 | D187: 66 | G187: 66 | H187: 26.40
A188: 姜佳萌 | B188: 中小学第07考场 | C188: 初中英语03 | D188: 68.5 | G188: 68.5 | H188: 27.40
A189: 于丁宇 | B189: 中小学第07考场 | C189: 初中英语03 | D189: 54.5 | G189: 54.5 | H189: 21.80
A190: 吴丽婷 | B190: 中小学第07考场 | C190: 初中英语03 | G190: 0 | H190: 0.00
A191: 邹成凤 | B191: 中小学第07考场 | C191: 初中英语03 | D191: 61.5 | G191: 61.5 | H191: 24.60
A192: 李玲玉 | B192: 中小学第07考场 | C192: 初中英语03 | D192: 77.5 | G192: 77.5 | H192: 31.00
A193: 温晓娟 | B193: 中小学第07考场 | C193: 初中英语03 | D193: 74 | G193: 74 | H193: 29.60
A194: 陈虹岑 | B194: 中小学第07考场 | C194: 初中英语03 | D194: 70.5 | G194: 70.5 | H194: 28.20
A195: 王淼 | B195: 中小学第07考场 | C195: 初中英语03 | D195: 64.5 | G195: 64.5 | H195: 25.80
A196: 邵捷 | B196: 中小学第07考场 | C196: 初中英语03 | G196: =D196+E196 -> 0 | H196: =G196*0.4 -> 0.00
A197: 符翔 | B197: 中小学第07考场 | C197: 初中英语03 | D197: 74 | G197: 74 | H197: 29.60
A198: 王淞靓 | B198: 中小学第07考场 | C198: 初中英语03 | D198: 63 | G198: 63 | H198: 25.20
A199: 陈立爽 | B199: 中小学第07考场 | C199: 初中英语03 | D199: 45.5 | G199: 45.5 | H199: 18.20
A200: 冯白露 | B200: 中小学第07考场 | C200: 初中英语03 | D200: 61.5 | E200: 10 | F200: 特岗教师 | G200: 71.5 | H200: 28.60
... 1540 more rows
